[Event "*** Titled Tuesday Blitz"]
[Site "Chess.com"]
[Date "2020.04.28"]
[Round "8"]
[White "vizumatv4hoda"]
[Black "YQPerez"]
[Result "0-1"]
[WhiteElo "2764"]
[BlackElo "2960"]
[TimeControl "180+1"]
[EndTime "11:35:02 PDT"]
[Termination "YQPerez won by checkmate"]

1. e4 {[%clk 0:03:00.9]} 1... e5 {[%clk 0:02:59.5]} 2. d4 {[%clk 0:03:01.1]}
2... exd4 {[%clk 0:02:58.3]} 3. Nf3 {[%clk 0:03:00.8]} 3... Nc6 {[%clk 0:02:56]}
4. c3 {[%clk 0:03:01.2]} 4... d5 {[%clk 0:02:54.5]} 5. Bd3 {[%clk 0:03:01.8]}
5... dxe4 {[%clk 0:02:24.1]} 6. Bxe4 {[%clk 0:03:02.7]} 6... Nf6 {[%clk
0:02:19.7]} 7. Bxc6+ {[%clk 0:03:03.2]} 7... bxc6 {[%clk 0:02:19.7]} 8. O-O
{[%clk 0:03:04.1]} 8... Be7 {[%clk 0:02:16.9]} 9. Nxd4 {[%clk 0:03:02.1]} 9...
c5 {[%clk 0:02:11.6]} 10. Qf3 {[%clk 0:02:57.2]} 10... Bg4 {[%clk 0:02:02.4]}
11. Qc6+ {[%clk 0:02:07.8]} 11... Bd7 {[%clk 0:02:00]} 12. Qf3 {[%clk
0:02:06.5]} 12... cxd4 {[%clk 0:01:57.9]} 13. cxd4 {[%clk 0:02:07.4]} 13... O-O
{[%clk 0:01:56.5]} 14. Nc3 {[%clk 0:02:06.7]} 14... h6 {[%clk 0:01:51.6]} 15.
Bf4 {[%clk 0:02:06.5]} 15... Bd6 {[%clk 0:01:49.9]} 16. Be5 {[%clk 0:02:06.5]}
16... Rb8 {[%clk 0:01:42.1]} 17. Rfe1 {[%clk 0:02:06.7]} 17... Rxb2 {[%clk
0:01:39.4]} 18. h3 {[%clk 0:02:04.6]} 18... Qa8 {[%clk 0:01:33.5]} 19. Qg3
{[%clk 0:02:00.9]} 19... Bxe5 {[%clk 0:01:30.8]} 20. dxe5 {[%clk 0:02:01.8]}
20... Nd5 {[%clk 0:01:31.1]} 21. Ne4 {[%clk 0:01:58.8]} 21... Bf5 {[%clk
0:01:27.3]} 22. Nf6+ {[%clk 0:01:58.2]} 22... Nxf6 {[%clk 0:01:15.5]} 23. exf6
{[%clk 0:01:59.1]} 23... Bg6 {[%clk 0:01:00.5]} 24. fxg7 {[%clk 0:01:57.6]}
24... Re8 {[%clk 0:00:57.7]} 25. Qxc7 {[%clk 0:01:54.4]} 25... Rxe1+ {[%clk
0:00:50.4]} 26. Rxe1 {[%clk 0:01:55.3]} 26... Qb8 {[%clk 0:00:48.7]} 27. Qc3
{[%clk 0:01:38]} 27... Rb1 {[%clk 0:00:44.5]} 28. Rxb1 {[%clk 0:01:31.2]} 28...
Qxb1+ {[%clk 0:00:43.7]} 29. Kh2 {[%clk 0:01:32.1]} 29... Qxa2 {[%clk 0:00:42]}
30. Qe5 {[%clk 0:01:27.7]} 30... Qxf2 {[%clk 0:00:35.6]} 31. h4 {[%clk 0:01:27]}
31... Qxh4+ {[%clk 0:00:33.5]} 32. Kg1 {[%clk 0:01:27.6]} 32... Qe4 {[%clk
0:00:28.9]} 33. Qb8+ {[%clk 0:01:25.5]} 33... Kxg7 {[%clk 0:00:28.7]} 34. Qxa7
{[%clk 0:01:26.4]} 34... Qe5 {[%clk 0:00:26.7]} 35. Qb6 {[%clk 0:01:23.1]} 35...
h5 {[%clk 0:00:26.3]} 36. Qf2 {[%clk 0:01:22.6]} 36... Qg5 {[%clk 0:00:25.2]}
37. Qd4+ {[%clk 0:01:21.3]} 37... Kh7 {[%clk 0:00:25.6]} 38. Kh2 {[%clk
0:01:19.5]} 38... h4 {[%clk 0:00:25.5]} 39. Qa7 {[%clk 0:01:14.2]} 39... Qg3+
{[%clk 0:00:25.2]} 40. Kh1 {[%clk 0:01:13.3]} 40... h3 {[%clk 0:00:25]} 41. Qg1
{[%clk 0:01:10.3]} 41... Qxg2+ {[%clk 0:00:22.3]} 42. Qxg2 {[%clk 0:01:11.2]}
42... hxg2+ {[%clk 0:00:23.1]} 43. Kxg2 {[%clk 0:01:11.7]} 43... Kh6 {[%clk
0:00:24]} 44. Kg3 {[%clk 0:01:12.6]} 44... Kg5 {[%clk 0:00:24.7]} 45. Kf3 {[%clk
0:01:12.9]} 45... f5 {[%clk 0:00:25.3]} 46. Kf2 {[%clk 0:01:13.8]} 46... f4
{[%clk 0:00:25.9]} 47. Kf3 {[%clk 0:01:14.6]} 47... Bh5+ {[%clk 0:00:26.1]} 48.
Kf2 {[%clk 0:01:15.5]} 48... Kg4 {[%clk 0:00:26.7]} 49. Kg2 {[%clk 0:01:16.4]}
49... f3+ {[%clk 0:00:27.1]} 50. Kf2 {[%clk 0:01:17.3]} 50... Kf4 {[%clk
0:00:27.8]} 51. Kg1 {[%clk 0:01:18.2]} 51... Kg3 {[%clk 0:00:28.4]} 52. Kh1
{[%clk 0:01:18.7]} 52... Bg6 {[%clk 0:00:28.8]} 53. Kg1 {[%clk 0:01:19.6]} 53...
Be8 {[%clk 0:00:27.9]} 54. Kh1 {[%clk 0:01:20.5]} 54... Kf2 {[%clk 0:00:27.9]}
55. Kh2 {[%clk 0:01:20.6]} 55... Ke2 {[%clk 0:00:28.3]} 56. Kh1 {[%clk
0:01:21.5]} 56... f2 {[%clk 0:00:28.5]} 57. Kg2 {[%clk 0:01:21.9]} 57... f1=Q+
{[%clk 0:00:28.9]} 58. Kh2 {[%clk 0:01:22.8]} 58... Qf8 {[%clk 0:00:27.3]} 59.
Kg2 {[%clk 0:01:23.7]} 59... Qg7+ {[%clk 0:00:27.6]} 60. Kh2 {[%clk 0:01:24.6]}
60... Kf2 {[%clk 0:00:27.7]} 61. Kh1 {[%clk 0:01:25.5]} 61... Qg2# {[%clk
0:00:27.8]} 0-1

[Event "*** Titled Tuesday Blitz"]
[Site "Chess.com"]
[Date "2020.04.28"]
[Round "8"]
[White "stoleriu"]
[Black "kuba2006"]
[Result "1-0"]
[WhiteElo "2553"]
[BlackElo "2411"]
[TimeControl "180+1"]
[EndTime "11:35:03 PDT"]
[Termination "stoleriu won on time"]

1. e4 {[%clk 0:03:00.9]} 1... e5 {[%clk 0:02:59.7]} 2. Nf3 {[%clk 0:03:00.8]}
2... Nc6 {[%clk 0:02:59.8]} 3. Bb5 {[%clk 0:03:01.3]} 3... a6 {[%clk 0:02:59.9]}
4. Ba4 {[%clk 0:03:01.7]} 4... Nge7 {[%clk 0:02:59.7]} 5. O-O {[%clk 0:03:00.8]}
5... g6 {[%clk 0:02:59.9]} 6. c3 {[%clk 0:03:00.6]} 6... Bg7 {[%clk 0:02:59.8]}
7. d4 {[%clk 0:03:01.2]} 7... exd4 {[%clk 0:02:59.9]} 8. cxd4 {[%clk 0:03:02.1]}
8... b5 {[%clk 0:03:00]} 9. Bc2 {[%clk 0:03:02.7]} 9... O-O {[%clk 0:02:59.7]}
10. d5 {[%clk 0:03:00.7]} 10... Na5 {[%clk 0:02:59.7]} 11. Re1 {[%clk
0:02:58.2]} 11... d6 {[%clk 0:02:56.7]} 12. Nc3 {[%clk 0:02:58]} 12... c5 {[%clk
0:02:51.6]} 13. dxc6 {[%clk 0:02:57.2]} 13... Nexc6 {[%clk 0:02:47.2]} 14. Nd5
{[%clk 0:02:55.7]} 14... Bb7 {[%clk 0:02:46.4]} 15. Rb1 {[%clk 0:02:56]} 15...
Nc4 {[%clk 0:02:44.4]} 16. b3 {[%clk 0:02:52]} 16... N4e5 {[%clk 0:02:44.3]} 17.
Be3 {[%clk 0:02:44.4]} 17... Rc8 {[%clk 0:02:35.8]} 18. Rc1 {[%clk 0:02:40.9]}
18... Nxf3+ {[%clk 0:02:31.9]} 19. Qxf3 {[%clk 0:02:41.8]} 19... Ne5 {[%clk
0:02:30.2]} 20. Qd1 {[%clk 0:02:40.4]} 20... Kh8 {[%clk 0:02:16.7]} 21. h3
{[%clk 0:02:39.3]} 21... Rc6 {[%clk 0:01:50.4]} 22. f4 {[%clk 0:02:28.6]} 22...
Nd7 {[%clk 0:01:48.1]} 23. Bd4 {[%clk 0:02:25.9]} 23... f6 {[%clk 0:01:43.5]}
24. a4 {[%clk 0:02:16.4]} 24... Nc5 {[%clk 0:01:39.2]} 25. axb5 {[%clk
0:02:04.8]} 25... axb5 {[%clk 0:01:40.1]} 26. b4 {[%clk 0:02:03.8]} 26... Ne6
{[%clk 0:01:39.7]} 27. Be3 {[%clk 0:02:02]} 27... f5 {[%clk 0:01:33.5]} 28. exf5
{[%clk 0:01:56.2]} 28... gxf5 {[%clk 0:01:34.4]} 29. Kh1 {[%clk 0:01:49]} 29...
Qe8 {[%clk 0:01:22.1]} 30. Bb3 {[%clk 0:01:28.2]} 30... Rxc1 {[%clk 0:00:32.1]}
31. Qxc1 {[%clk 0:01:29.1]} 31... Qg6 {[%clk 0:00:32.3]} 32. Qd2 {[%clk
0:01:26.7]} 32... Rc8 {[%clk 0:00:17]} 33. Ne7 {[%clk 0:01:22.5]} 33... Qe8
{[%clk 0:00:08.1]} 34. Nxc8 {[%clk 0:01:16.8]} 34... Qxc8 {[%clk 0:00:08.8]} 35.
Bxe6 {[%clk 0:01:11.8]} 35... Qxe6 {[%clk 0:00:08]} 36. Bd4 {[%clk 0:01:10.2]}
36... Qg8 {[%clk 0:00:03.3]} 37. Bxg7+ {[%clk 0:01:07.4]} 37... Kxg7 {[%clk
0:00:03.3]} 38. Re7+ {[%clk 0:01:05.4]} 38... Kh8 {[%clk 0:00:02.1]} 39. Qd4+
{[%clk 0:01:05]} 1-0

[Event "*** Titled Tuesday Blitz"]
[Site "Chess.com"]
[Date "2020.04.28"]
[Round "8"]
[White "Manukyan_Artak"]
[Black "blitzking1729"]
[Result "0-1"]
[WhiteElo "2397"]
[BlackElo "2558"]
[TimeControl "180+1"]
[EndTime "11:35:04 PDT"]
[Termination "blitzking1729 won by resignation"]

1. e4 {[%clk 0:03:00.9]} 1... d6 {[%clk 0:02:57.1]} 2. d4 {[%clk 0:03:01]} 2...
Nf6 {[%clk 0:02:57.7]} 3. f3 {[%clk 0:03:00.5]} 3... c6 {[%clk 0:02:58.3]} 4. c4
{[%clk 0:03:00.5]} 4... Nbd7 {[%clk 0:02:56.2]} 5. Nc3 {[%clk 0:03:00.6]} 5...
e5 {[%clk 0:02:55.8]} 6. d5 {[%clk 0:03:00.7]} 6... Be7 {[%clk 0:02:50.8]} 7.
Bd3 {[%clk 0:02:58.8]} 7... O-O {[%clk 0:02:49.4]} 8. Nge2 {[%clk 0:02:58.1]}
8... cxd5 {[%clk 0:02:47.7]} 9. cxd5 {[%clk 0:02:57.2]} 9... Nc5 {[%clk
0:02:46.8]} 10. Be3 {[%clk 0:02:53]} 10... Nxd3+ {[%clk 0:02:44.7]} 11. Qxd3
{[%clk 0:02:53.9]} 11... Bd7 {[%clk 0:02:39.2]} 12. O-O {[%clk 0:02:52.9]} 12...
a6 {[%clk 0:02:38.1]} 13. a4 {[%clk 0:02:52]} 13... Nh5 {[%clk 0:02:28.1]} 14.
a5 {[%clk 0:02:49.5]} 14... f5 {[%clk 0:02:27.6]} 15. b4 {[%clk 0:02:25.2]}
15... f4 {[%clk 0:02:26.1]} 16. Bf2 {[%clk 0:02:20.5]} 16... Bh4 {[%clk
0:02:25.9]} 17. Na4 {[%clk 0:02:16.7]} 17... Bb5 {[%clk 0:02:24.4]} 18. Qd2
{[%clk 0:02:12.8]} 18... Bxf2+ {[%clk 0:02:24.1]} 19. Rxf2 {[%clk 0:02:12.8]}
19... Bxa4 {[%clk 0:02:23.4]} 20. Rxa4 {[%clk 0:02:12.1]} 20... Qd7 {[%clk
0:02:23.4]} 21. Ra3 {[%clk 0:02:02.5]} 21... Rac8 {[%clk 0:02:22]} 22. Rc3
{[%clk 0:02:02]} 22... Qa4 {[%clk 0:02:18.9]} 23. Qb2 {[%clk 0:01:57.5]} 23...
Qb5 {[%clk 0:01:41.4]} 24. Rf1 {[%clk 0:01:49.1]} 24... b6 {[%clk 0:01:40.8]}
25. axb6 {[%clk 0:01:46.1]} 25... Qxb6+ {[%clk 0:01:40.3]} 26. Kh1 {[%clk
0:01:46.4]} 26... Rxc3 {[%clk 0:01:38.4]} 27. Nxc3 {[%clk 0:01:44.7]} 27... Rf6
{[%clk 0:01:37.1]} 28. Rf2 {[%clk 0:01:16.2]} 28... Ng3+ {[%clk 0:01:26.9]} 29.
Kg1 {[%clk 0:01:16]} 29... Rh6 {[%clk 0:01:26.3]} 30. Na4 {[%clk 0:00:50]} 30...
Qe3 {[%clk 0:01:21.9]} 31. Qd2 {[%clk 0:00:33.8]} 31... Rxh2 {[%clk 0:01:11.2]}
32. Kxh2 {[%clk 0:00:10.1]} 32... Nf1+ {[%clk 0:01:10.8]} 33. Rxf1 {[%clk
0:00:10.3]} 33... Qxd2 {[%clk 0:01:10.9]} 34. Rb1 {[%clk 0:00:07.7]} 34... Qc2
{[%clk 0:01:10.1]} 35. Ra1 {[%clk 0:00:07.2]} 35... Qb3 {[%clk 0:01:09.5]} 36.
Nb6 {[%clk 0:00:06.6]} 36... Qxb4 {[%clk 0:01:07.5]} 37. Nd7 {[%clk 0:00:06.3]}
37... Qb7 {[%clk 0:01:04.6]} 38. Nb8 {[%clk 0:00:03.6]} 38... Qxb8 {[%clk
0:01:03]} 39. Rxa6 {[%clk 0:00:04.5]} 39... Kf7 {[%clk 0:01:02.4]} 0-1

[Event "*** Titled Tuesday Blitz"]
[Site "Chess.com"]
[Date "2020.04.28"]
[Round "8"]
[White "RianKapriaga"]
[Black "adiosabu"]
[Result "0-1"]
[WhiteElo "2203"]
[BlackElo "2407"]
[TimeControl "180+1"]
[EndTime "11:35:05 PDT"]
[Termination "adiosabu won by checkmate"]

1. d4 {[%clk 0:03:00.3]} 1... d5 {[%clk 0:02:58.5]} 2. Nf3 {[%clk 0:02:58.6]}
2... Nf6 {[%clk 0:02:58.2]} 3. Bf4 {[%clk 0:02:58.6]} 3... c5 {[%clk 0:02:55.1]}
4. e3 {[%clk 0:02:58.1]} 4... Nc6 {[%clk 0:02:53.4]} 5. Nbd2 {[%clk 0:02:57.3]}
5... cxd4 {[%clk 0:02:51.8]} 6. exd4 {[%clk 0:02:56.7]} 6... Bg4 {[%clk
0:02:51.7]} 7. Be2 {[%clk 0:02:55.3]} 7... e6 {[%clk 0:02:49.5]} 8. O-O {[%clk
0:02:54.2]} 8... Bd6 {[%clk 0:02:49.1]} 9. Bg3 {[%clk 0:02:46.7]} 9... O-O
{[%clk 0:02:46.6]} 10. c3 {[%clk 0:02:46.1]} 10... Bxg3 {[%clk 0:02:40.3]} 11.
hxg3 {[%clk 0:02:45.4]} 11... Qc7 {[%clk 0:02:37.7]} 12. Re1 {[%clk 0:02:42.1]}
12... Rfb8 {[%clk 0:02:30.2]} 13. a4 {[%clk 0:02:40.8]} 13... a6 {[%clk
0:02:29.2]} 14. Ne5 {[%clk 0:02:28]} 14... Nxe5 {[%clk 0:02:22.4]} 15. dxe5
{[%clk 0:02:27.6]} 15... Bxe2 {[%clk 0:02:23.1]} 16. Qxe2 {[%clk 0:02:25.9]}
16... Nd7 {[%clk 0:02:23.5]} 17. a5 {[%clk 0:02:22.2]} 17... b6 {[%clk
0:02:20.5]} 18. axb6 {[%clk 0:02:21.6]} 18... Rxb6 {[%clk 0:02:20.4]} 19. Nf3
{[%clk 0:02:19]} 19... Rab8 {[%clk 0:02:17.6]} 20. Ra2 {[%clk 0:02:18.4]} 20...
Nc5 {[%clk 0:02:13.8]} 21. Rea1 {[%clk 0:02:14.2]} 21... h6 {[%clk 0:02:11.4]}
22. Qd2 {[%clk 0:01:56.7]} 22... Nb3 {[%clk 0:02:10.5]} 23. Qd1 {[%clk
0:01:50.8]} 23... Nxa1 {[%clk 0:02:09.8]} 24. Qxa1 {[%clk 0:01:51.3]} 24... g5
{[%clk 0:01:48.1]} 25. Qc1 {[%clk 0:01:34.7]} 25... Kg7 {[%clk 0:01:46.8]} 26.
Nxg5 {[%clk 0:01:26.3]} 26... hxg5 {[%clk 0:01:44.2]} 27. Qxg5+ {[%clk
0:01:26.4]} 27... Kf8 {[%clk 0:01:44.8]} 28. Ra4 {[%clk 0:01:25.1]} 28... Qe7
{[%clk 0:01:30.9]} 29. Qh6+ {[%clk 0:01:24.7]} 29... Ke8 {[%clk 0:01:31]} 30. b4
{[%clk 0:01:16.6]} 30... Rc6 {[%clk 0:01:28.2]} 31. Qh8+ {[%clk 0:01:10.7]}
31... Qf8 {[%clk 0:01:27.3]} 32. Qf6 {[%clk 0:01:10.8]} 32... Kd7 {[%clk
0:01:25.5]} 33. Ra5 {[%clk 0:01:01.8]} 33... Rxc3 {[%clk 0:01:21.3]} 34. f4
{[%clk 0:00:44.9]} 34... Rxb4 {[%clk 0:00:53.6]} 35. Rxa6 {[%clk 0:00:41.8]}
35... Rb1+ {[%clk 0:00:52.3]} 36. Kh2 {[%clk 0:00:39.5]} 36... Rcc1 {[%clk
0:00:49.9]} 37. g4 {[%clk 0:00:33]} 37... Rh1+ {[%clk 0:00:46.1]} 38. Kg3 {[%clk
0:00:33.3]} 38... Rb3+ {[%clk 0:00:46.5]} 39. Kf2 {[%clk 0:00:33.6]} 39... Qc5+
{[%clk 0:00:46.7]} 40. Ke2 {[%clk 0:00:32.4]} 40... Qe3# {[%clk 0:00:47.2]} 0-1

[Event "*** Titled Tuesday Blitz"]
[Site "Chess.com"]
[Date "2020.04.28"]
[Round "8"]
[White "Kate1606"]
[Black "Karina_Ivanova"]
[Result "1-0"]
[WhiteElo "2028"]
[BlackElo "2178"]
[TimeControl "180+1"]
[EndTime "11:35:08 PDT"]
[Termination "Kate1606 won by resignation"]

1. e4 {[%clk 0:03:00.9]} 1... c6 {[%clk 0:02:59.1]} 2. d4 {[%clk 0:03:00.5]}
2... d5 {[%clk 0:03:00]} 3. exd5 {[%clk 0:03:00.2]} 3... cxd5 {[%clk 0:03:00]}
4. Bd3 {[%clk 0:03:00.8]} 4... Nc6 {[%clk 0:02:59.8]} 5. c3 {[%clk 0:02:59.8]}
5... Nf6 {[%clk 0:02:57]} 6. Bf4 {[%clk 0:03:00]} 6... g6 {[%clk 0:02:55.4]} 7.
Nd2 {[%clk 0:02:55.8]} 7... Bg7 {[%clk 0:02:55.1]} 8. h3 {[%clk 0:02:55.4]} 8...
O-O {[%clk 0:02:53.6]} 9. Ngf3 {[%clk 0:02:51.4]} 9... Bf5 {[%clk 0:02:53.2]}
10. Bxf5 {[%clk 0:02:47.2]} 10... gxf5 {[%clk 0:02:54.1]} 11. O-O {[%clk
0:02:35.8]} 11... Ne4 {[%clk 0:02:52.9]} 12. Ne5 {[%clk 0:02:25.9]} 12... Rc8
{[%clk 0:02:43.1]} 13. f3 {[%clk 0:02:10.9]} 13... Nd6 {[%clk 0:02:40.3]} 14.
Qe1 {[%clk 0:02:06.8]} 14... e6 {[%clk 0:02:39]} 15. Qg3 {[%clk 0:02:02.8]}
15... Kh8 {[%clk 0:02:34.6]} 16. Nd3 {[%clk 0:01:17.9]} 16... Nc4 {[%clk
0:02:21.7]} 17. Nxc4 {[%clk 0:01:14.8]} 17... dxc4 {[%clk 0:02:21.7]} 18. Ne5
{[%clk 0:01:13.6]} 18... Nxe5 {[%clk 0:02:15.7]} 19. Bxe5 {[%clk 0:01:12.4]}
19... Rg8 {[%clk 0:02:13.9]} 20. Bxg7+ {[%clk 0:01:08.7]} 20... Rxg7 {[%clk
0:02:13.6]} 21. Qe5 {[%clk 0:01:09.3]} 21... Qc7 {[%clk 0:02:03]} 22. Rae1
{[%clk 0:00:57.1]} 22... Kg8 {[%clk 0:02:00.6]} 23. Qxc7 {[%clk 0:00:52.8]}
23... Rxc7 {[%clk 0:02:00.3]} 24. Re5 {[%clk 0:00:53.6]} 24... Kf8 {[%clk
0:01:55.1]} 25. Kf2 {[%clk 0:00:47.8]} 25... Ke7 {[%clk 0:01:54.7]} 26. Rfe1
{[%clk 0:00:46.3]} 26... Kd6 {[%clk 0:01:52.2]} 27. d5 {[%clk 0:00:43.2]} 27...
Rg6 {[%clk 0:01:49.3]} 28. f4 {[%clk 0:00:37.7]} 28... Rf6 {[%clk 0:01:46.1]}
29. dxe6 {[%clk 0:00:33.8]} 29... fxe6 {[%clk 0:01:45.9]} 30. Rd1+ {[%clk
0:00:34.2]} 30... Ke7 {[%clk 0:01:43]} 31. Kf3 {[%clk 0:00:27.2]} 31... Rf8
{[%clk 0:01:38.5]} 32. g4 {[%clk 0:00:25.7]} 32... fxg4+ {[%clk 0:01:36.4]} 33.
hxg4 {[%clk 0:00:25.7]} 33... Rd7 {[%clk 0:01:22.2]} 34. Rxd7+ {[%clk
0:00:21.5]} 34... Kxd7 {[%clk 0:01:21.4]} 35. Rc5 {[%clk 0:00:20.4]} 35... Rc8
{[%clk 0:01:15.3]} 36. Rxc8 {[%clk 0:00:20.2]} 36... Kxc8 {[%clk 0:01:15.4]} 37.
Ke4 {[%clk 0:00:20]} 37... Kc7 {[%clk 0:01:14]} 38. Ke5 {[%clk 0:00:18.8]} 38...
Kd7 {[%clk 0:01:13.1]} 39. Kf6 {[%clk 0:00:18.5]} 39... Kd6 {[%clk 0:01:13.3]}
40. Kg7 {[%clk 0:00:17.7]} 40... e5 {[%clk 0:01:12.6]} 41. f5 {[%clk 0:00:13.6]}
41... e4 {[%clk 0:01:11.4]} 42. f6 {[%clk 0:00:14.1]} 42... e3 {[%clk 0:01:09]}
43. f7 {[%clk 0:00:15]} 1-0

[Event "*** Titled Tuesday Blitz"]
[Site "Chess.com"]
[Date "2020.04.28"]
[Round "8"]
[White "DerKnipser"]
[Black "HouseOfDurin"]
[Result "1-0"]
[WhiteElo "2294"]
[BlackElo "2039"]
[TimeControl "180+1"]
[EndTime "11:35:08 PDT"]
[Termination "DerKnipser won by resignation"]

1. e4 {[%clk 0:03:00.8]} 1... c5 {[%clk 0:03:00.4]} 2. d4 {[%clk 0:03:01]} 2...
cxd4 {[%clk 0:03:00.3]} 3. c3 {[%clk 0:03:01.6]} 3... dxc3 {[%clk 0:03:01.2]} 4.
Nxc3 {[%clk 0:03:02.5]} 4... Nc6 {[%clk 0:03:01.3]} 5. Nf3 {[%clk 0:03:03.1]}
5... d6 {[%clk 0:03:01.8]} 6. Bc4 {[%clk 0:03:03.7]} 6... e6 {[%clk 0:03:02.4]}
7. Qe2 {[%clk 0:03:03.7]} 7... Be7 {[%clk 0:03:02.6]} 8. O-O {[%clk 0:03:02.1]}
8... Nf6 {[%clk 0:03:03]} 9. Rd1 {[%clk 0:03:02.8]} 9... Qa5 {[%clk 0:03:03.4]}
10. a3 {[%clk 0:03:02.8]} 10... a6 {[%clk 0:03:01.5]} 11. Be3 {[%clk 0:03:01.8]}
11... O-O {[%clk 0:02:53.7]} 12. h3 {[%clk 0:03:00.4]} 12... Qh5 {[%clk
0:02:32.4]} 13. Bb6 {[%clk 0:02:57.8]} 13... Nd7 {[%clk 0:01:53.1]} 14. Bc7
{[%clk 0:02:54.9]} 14... b5 {[%clk 0:01:39.1]} 15. Ba2 {[%clk 0:02:51.1]} 15...
Nde5 {[%clk 0:01:21]} 16. Bxd6 {[%clk 0:02:44.9]} 16... Nxf3+ {[%clk 0:01:20.5]}
17. Qxf3 {[%clk 0:02:45]} 17... Qxf3 {[%clk 0:01:19.8]} 18. gxf3 {[%clk
0:02:45.9]} 18... Bxd6 {[%clk 0:01:19.6]} 19. Rxd6 {[%clk 0:02:46]} 19... Bb7
{[%clk 0:01:02]} 20. Rad1 {[%clk 0:02:41.4]} 20... Rfd8 {[%clk 0:01:00.9]} 21.
Kg2 {[%clk 0:02:38.6]} 21... Kf8 {[%clk 0:00:58.3]} 22. f4 {[%clk 0:02:36.9]}
22... Ke7 {[%clk 0:00:55.5]} 23. Rxd8 {[%clk 0:02:34.8]} 23... Rxd8 {[%clk
0:00:56.4]} 24. Rxd8 {[%clk 0:02:35]} 24... Kxd8 {[%clk 0:00:52.7]} 25. Kg3
{[%clk 0:02:35.2]} 25... b4 {[%clk 0:00:44.3]} 26. axb4 {[%clk 0:02:29.9]} 26...
Nxb4 {[%clk 0:00:45.2]} 27. Bb1 {[%clk 0:02:17.7]} 27... h6 {[%clk 0:00:37.4]}
28. f3 {[%clk 0:02:18.1]} 28... Bc6 {[%clk 0:00:29.9]} 29. Kf2 {[%clk
0:02:16.6]} 29... Ke7 {[%clk 0:00:29.5]} 30. Ke3 {[%clk 0:02:16.6]} 30... Kd6
{[%clk 0:00:28.9]} 31. Kd4 {[%clk 0:02:14.2]} 31... a5 {[%clk 0:00:21.7]} 32.
Kc4 {[%clk 0:02:12.4]} 32... Na6 {[%clk 0:00:20.8]} 33. Nb5+ {[%clk 0:02:09]}
33... Kd7 {[%clk 0:00:18.4]} 34. Nd4 {[%clk 0:02:06.7]} 34... Bb7 {[%clk
0:00:18]} 35. Kb5 {[%clk 0:02:05.2]} 35... Nc7+ {[%clk 0:00:17]} 36. Kxa5 {[%clk
0:02:04.7]} 36... f5 {[%clk 0:00:17.2]} 37. b4 {[%clk 0:01:59.3]} 37... g6
{[%clk 0:00:16]} 38. Kb6 {[%clk 0:01:57.7]} 38... Bc8 {[%clk 0:00:15.3]} 39. Bd3
{[%clk 0:01:54.7]} 39... Na8+ {[%clk 0:00:13.3]} 40. Kc5 {[%clk 0:01:52.4]}
40... Nc7 {[%clk 0:00:12.7]} 41. b5 {[%clk 0:01:48.8]} 41... Bb7 {[%clk
0:00:11.3]} 42. b6 {[%clk 0:01:47.6]} 42... Na8 {[%clk 0:00:07.5]} 43. Bb5+
{[%clk 0:01:44.7]} 43... Ke7 {[%clk 0:00:05.4]} 44. Bc6 {[%clk 0:01:44.7]} 44...
Bxc6 {[%clk 0:00:05.5]} 45. Kxc6 {[%clk 0:01:45]} 45... Nxb6 {[%clk 0:00:05.7]}
46. Kxb6 {[%clk 0:01:45.1]} 46... fxe4 {[%clk 0:00:04.3]} 47. fxe4 {[%clk
0:01:45.3]} 47... g5 {[%clk 0:00:04.8]} 48. fxg5 {[%clk 0:01:45.6]} 48... hxg5
{[%clk 0:00:05.1]} 49. e5 {[%clk 0:01:46.1]} 49... Kf7 {[%clk 0:00:04.7]} 50.
Kc6 {[%clk 0:01:42.6]} 50... Kg6 {[%clk 0:00:03.3]} 51. Kd6 {[%clk 0:01:42.8]}
51... Kh5 {[%clk 0:00:03.7]} 52. Kxe6 {[%clk 0:01:40.1]} 52... Kh4 {[%clk
0:00:04.6]} 53. Nf3+ {[%clk 0:01:40.5]} 53... Kxh3 {[%clk 0:00:04.8]} 54. Nxg5+
{[%clk 0:01:41]} 54... Kg4 {[%clk 0:00:05.7]} 55. Kf6 {[%clk 0:01:41.5]} 1-0

[Event "*** Titled Tuesday Blitz"]
[Site "Chess.com"]
[Date "2020.04.28"]
[Round "8"]
[White "Fy_Rakotomaharo"]
[Black "almo64"]
[Result "0-1"]
[WhiteElo "2659"]
[BlackElo "2835"]
[TimeControl "180+1"]
[EndTime "11:35:09 PDT"]
[Termination "almo64 won by resignation"]

1. e4 {[%clk 0:03:00.9]} 1... c5 {[%clk 0:03:00]} 2. Nf3 {[%clk 0:03:01]} 2...
Nc6 {[%clk 0:03:00.2]} 3. Bb5 {[%clk 0:03:00.3]} 3... g6 {[%clk 0:03:00.2]} 4.
O-O {[%clk 0:03:00.2]} 4... Bg7 {[%clk 0:03:00.3]} 5. c3 {[%clk 0:02:52.2]} 5...
Nf6 {[%clk 0:02:57.7]} 6. Re1 {[%clk 0:02:51.9]} 6... O-O {[%clk 0:02:54.8]} 7.
a4 {[%clk 0:02:49.7]} 7... d5 {[%clk 0:02:43.3]} 8. e5 {[%clk 0:02:41.8]} 8...
Ne8 {[%clk 0:02:41.3]} 9. d4 {[%clk 0:02:33.8]} 9... Bg4 {[%clk 0:02:40.9]} 10.
Bxc6 {[%clk 0:02:28.1]} 10... bxc6 {[%clk 0:02:40.1]} 11. Nbd2 {[%clk 0:02:27]}
11... c4 {[%clk 0:02:32.6]} 12. h3 {[%clk 0:02:16.1]} 12... Bf5 {[%clk
0:02:28.5]} 13. b3 {[%clk 0:02:15.1]} 13... Bd3 {[%clk 0:02:26.4]} 14. bxc4
{[%clk 0:02:13.1]} 14... dxc4 {[%clk 0:02:26.1]} 15. Ne4 {[%clk 0:02:13.7]}
15... Bxe4 {[%clk 0:02:20.2]} 16. Rxe4 {[%clk 0:02:13.2]} 16... Nc7 {[%clk
0:02:19]} 17. Rh4 {[%clk 0:02:06.5]} 17... f6 {[%clk 0:02:14.3]} 18. Bh6 {[%clk
0:01:58.5]} 18... Bxh6 {[%clk 0:02:05.9]} 19. Rxh6 {[%clk 0:01:58.2]} 19... Nd5
{[%clk 0:01:56.5]} 20. Qc2 {[%clk 0:01:33.9]} 20... Kg7 {[%clk 0:01:52.9]} 21.
Rh4 {[%clk 0:01:32.6]} 21... Qa5 {[%clk 0:01:51.3]} 22. Qd2 {[%clk 0:01:16.7]}
22... g5 {[%clk 0:01:02.3]} 23. Nxg5 {[%clk 0:01:09.5]} 23... fxg5 {[%clk
0:01:02.4]} 24. Qxg5+ {[%clk 0:01:09.3]} 24... Kf7 {[%clk 0:01:02.8]} 25. Qh5+
{[%clk 0:00:57.8]} 25... Ke6 {[%clk 0:01:02.5]} 26. Qg4+ {[%clk 0:00:54.4]}
26... Kf7 {[%clk 0:01:02.6]} 27. Rxh7+ {[%clk 0:00:38.5]} 27... Ke8 {[%clk
0:01:02.4]} 28. Qg6+ {[%clk 0:00:38.9]} 28... Kd8 {[%clk 0:00:58.3]} 29. Qxc6
{[%clk 0:00:38.7]} 29... Rc8 {[%clk 0:00:58.2]} 30. Qe6 {[%clk 0:00:31.7]} 30...
Re8 {[%clk 0:00:58.2]} 31. Rb1 {[%clk 0:00:24.4]} 31... Nxc3 {[%clk 0:00:57.5]}
32. Rb7 {[%clk 0:00:20.6]} 32... Qd5 {[%clk 0:00:57.4]} 33. Qa6 {[%clk
0:00:07.8]} 33... Rg8 {[%clk 0:00:48.8]} 34. f3 {[%clk 0:00:03.3]} 34... Qxd4+
{[%clk 0:00:46.7]} 35. Kh2 {[%clk 0:00:02.7]} 35... Qxe5+ {[%clk 0:00:46.1]} 36.
Kh1 {[%clk 0:00:03.2]} 36... Qe1+ {[%clk 0:00:44.5]} 0-1